fUST/lending_fUST_20251026
["ID","MTS","AMOUNT","RATE_DAILY","PERIOD"]
[392391145,1761423038282,-2373.89039267,0.00016138,2]
[392391146,1761423038335,-38812.8078055,0.00016138,2]
[392391147,1761423038347,-34117.20460563,0.00016138,2]
[392391163,1761423040428,-22110.83297135,0.00016138,2]
[392391164,1761423040482,-6699.19738977,0.00016138,2]
[392391172,1761423040665,-3e-08,0.00016138,2]
[392391175,1761423040677,-83900.59465822,0.00016138,2]
[392391187,1761423048946,395.3470981,0.0001604,2]
[392391188,1761423054375,196.0,0.00016,2]
[392391189,1761423055140,196.0,0.00016048,2]
[392391190,1761423055490,196.0,0.00016095,2]
[392391191,1761423062543,300.0,0.00016137,2]
[392391192,1761423070268,454.70900209,0.00016042,2]
[392391193,1761423091463,380.24309273,0.0003,120]
[392391194,1761423122146,300.0,0.00016137,2]
[392391195,1761423148811,-195.99999997,0.00016138,2]
[392391196,1761423150999,-234.8013381,0.00016138,2]
[392391197,1761423158317,1200.0,0.00016137,2]
[392391198,1761423163241,214.661318,0.00019,6]
[392391199,1761423182403,300.0,0.00016137,2]
[392391200,1761423182651,393.95699496,0.00016138,2]
[392391201,1761423182673,767.06753045,0.00016138,2]
[392391202,1761423183319,196.0,0.00016,2]
[392391204,1761423187863,607.24409368,0.00016042,2]
[392391205,1761423189796,607.24409367,0.00016116,2]
[392391209,1761423211741,153.134479,0.00019,6]
[392391213,1761423242879,300.0,0.00016137,2]
[392391220,1761423295111,196.0,0.00016,2]
[392391221,1761423295455,196.0,0.00016051,2]
[392391222,1761423295794,196.0,0.00016102,2]
[392391224,1761423302012,300.0,0.00016137,2]
[392391225,1761423302057,1200.0,0.00016137,2]
[392391249,1761423312215,213.96859442,0.00016138,2]
[392391255,1761423363013,300.0,0.00016137,2]
[392391257,1761423383110,4920.48568778,0.00016038,2]
[392391258,1761423383132,10000.01,0.00016038,2]
[392391259,1761423383155,10000.01,0.00016038,2]
[392391260,1761423383177,10000.01,0.00016038,2]
[392391261,1761423383201,10000.01,0.00016038,2]
[392391262,1761423383224,10000.01,0.00016038,2]
[392391263,1761423383247,10000.01,0.00016038,2]
[392391264,1761423383269,10000.01,0.00016038,2]
[392391265,1761423383291,10000.01,0.00016038,2]
[392391266,1761423383313,10000.01,0.00016038,2]
[392391268,1761423387091,-4731.16199746,0.00016038,2]
[392391269,1761423387159,-10000.01,0.00016038,2]
[392391270,1761423387333,-10000.01,0.00016038,2]
[392391271,1761423387442,-10000.01,0.00016038,2]
[392391272,1761423387559,-10000.01,0.00016038,2]
[392391273,1761423391478,-10000.01,0.00016038,2]
[392391274,1761423391588,-10000.01,0.00016038,2]
[392391275,1761423391705,-10000.01,0.00016038,2]
[392391276,1761423391842,-10000.01,0.00016038,2]
[392391277,1761423391970,-10000.01,0.00016038,2]
[392391278,1761423392094,-10000.01,0.00016038,2]
[392391279,1761423392225,-10000.01,0.00016038,2]
[392391280,1761423392522,-469.95751141,0.00016037,2]
[392391281,1761423392549,-199.32076885,0.00016037,2]
[392391282,1761423392630,-8661.45343948,0.00016038,2]
[392391283,1761423392654,-10000.01,0.00016038,2]
[392391284,1761423392676,-10000.01,0.00016038,2]
[392391285,1761423392723,-10000.01,0.00016038,2]
[392391286,1761423392838,-10000.01,0.00016038,2]
[392391287,1761423393095,-10000.01,0.00016038,2]
[392391288,1761423393246,-10000.01,0.00016038,2]
[392391289,1761423393394,-10000.01,0.00016038,2]
[392391290,1761423397487,-500.0,0.00016037,2]
[392391291,1761423397519,-500.0,0.00016037,2]
[392391292,1761423397550,-500.0,0.00016037,2]
[392391293,1761423397582,-575.77935522,0.00016037,2]
[392391294,1761423397615,-500.0,0.00016037,2]
[392391295,1761423397646,-489.97863808,0.00016037,2]
[392391297,1761423397774,-3868.4940134,0.00016038,2]
[392391298,1761423397811,-10000.01,0.00016038,2]
[392391299,1761423397911,-10000.01,0.00016038,2]
[392391300,1761423398013,-10000.01,0.00016038,2]
[392391301,1761423398138,-10000.01,0.00016038,2]
[392391302,1761423398270,-10000.01,0.00016038,2]
[392391303,1761423398388,-10000.01,0.00016038,2]
[392391304,1761423398761,-10000.01,0.00016038,2]
[392391305,1761423398786,-7818.06486188,0.00016038,2]
[392391307,1761423409629,-168.0,0.00016142,2]
[392391308,1761423410226,250.0,0.00015973,2]
[392391310,1761423415494,5000.0,0.00016142,2]
[392391311,1761423422367,196.0,0.00016,2]
[392391312,1761423422719,196.0,0.00016081,2]
[392391314,1761423423380,4022.01,0.00016142,2]
[392391315,1761423423403,977.99,0.00016142,2]
[392391471,1761423438492,5000.0,0.00016161,2]
[392391547,1761423446903,4284.80716483,0.00016161,2]
[392391611,1761423455146,-168.0,0.00016161,2]
[392391613,1761423455174,-196.0,0.00016162,2]
[392391627,1761423472711,-607.24409367,0.0001619,2]
[392391636,1761423485436,-320.9769494,0.00016223,2]
[392391642,1761423500613,-168.0,0.00016224,2]
[392391645,1761423515912,-196.0,0.00016242,2]
[392391648,1761423537026,196.0,0.00016,2]
[392391649,1761423537320,196.0,0.00016057,2]
[392391650,1761423537654,196.0,0.00016114,2]
[392391651,1761423537965,196.0,0.0001617,2]
[392391652,1761423538542,196.0,0.00016227,2]
[392391662,1761423553243,2034.80968811,0.00016256,2]
[392391663,1761423553525,6985.20031189,0.00016038,2]
[392391664,1761423553549,10000.01,0.00016038,2]
[392391665,1761423553570,10000.01,0.00016038,2]
[392391666,1761423553592,10000.01,0.00016038,2]
[392391667,1761423553613,10000.01,0.00016038,2]
[392391668,1761423553634,10000.01,0.00016038,2]
[392391669,1761423553655,10000.01,0.00016038,2]
[392391670,1761423553676,10000.01,0.00016038,2]
[392391671,1761423553696,10000.01,0.00016038,2]
[392391672,1761423553718,10000.01,0.00016038,2]
[392391675,1761423568832,-262.33970383,0.00016038,2]
[392391677,1761423572266,-207.99762457,0.00016038,2]
[392391678,1761423574552,-196.0,0.00016038,2]
[392391679,1761423576951,-223.03733556,0.00016038,2]
[392391680,1761423578659,-158.501061,0.00016038,2]
[392391681,1761423581060,-196.0,0.00016038,2]
[392391683,1761423584273,-164.75184493,0.00016038,2]
[392391684,1761423585817,342.53063101,0.00015216,2]
[392391685,1761423586713,-189.90705478,0.00016038,2]
[392391686,1761423587344,391.4635783,0.00015286,2]
[392391687,1761423588881,-209.13028078,0.00016038,2]
[392391688,1761423589089,611.05017925,0.00015356,2]
[392391689,1761423593534,-270.41590814,0.00016038,2]
[392391691,1761423595414,-169.24885918,0.00016038,2]
[392391692,1761423597530,-314.25338474,0.00016038,2]
[392391695,1761423602045,300.0,0.00016037,2]
[392391696,1761423602145,1200.0,0.00016037,2]
[392391698,1761423602891,-358.4442926,0.00016038,2]
[392391710,1761423605048,-206.2211617,0.00016038,2]
[392391720,1761423606865,-252.91166197,0.00016038,2]
[392391728,1761423609250,-385.17573759,0.00016038,2]
[392391730,1761423611286,-153.53254037,0.00016038,2]
[392391731,1761423613339,-168.12084549,0.00016038,2]
[392391732,1761423616628,-276.29242426,0.00016038,2]
[392391733,1761423619552,-154.78707502,0.00016038,2]
[392391735,1761423622175,-292.63424069,0.00016038,2]
[392391736,1761423625505,-247.08833803,0.00016038,2]
[392391737,1761423628189,-201.73371903,0.00016038,2]
[392391738,1761423631381,-295.03439519,0.00016038,2]
[392391739,1761423633039,328.97025799,0.00016037,2]
[392391741,1761423633825,-417.55950424,0.00016038,2]
[392391742,1761423634083,603.8558698,0.00016037,2]
[392391743,1761423634115,500.0,0.00016037,2]
[392391744,1761423634147,252.5098445,0.00016037,2]
[392391745,1761423634176,449.86410238,0.00016037,2]
[392391746,1761423634216,175.08659502,0.00016037,2]
[392391747,1761423634246,500.0,0.00016037,2]
[392391748,1761423634281,500.0,0.00016037,2]
[392391749,1761423634310,500.0,0.00016037,2]
[392391750,1761423634356,165.55318201,0.00016037,2]
[392391751,1761423635459,-382.44049576,0.00016038,2]
[392391752,1761423638765,-196.0,0.00016038,2]
[392391753,1761423641738,-199.19903338,0.00016038,2]
[392391754,1761423658771,-421.36901247,0.00016038,2]
[392391755,1761423659512,196.0,0.00016,2]
[392391757,1761423661852,-160.09684101,0.00016038,2]
[392391758,1761423662812,300.0,0.00016037,2]
[392391763,1761423666820,-162.81526011,0.00016038,2]
[392391764,1761423669189,-177.08789888,0.00016038,2]
[392391765,1761423671471,-183.46693848,0.00016038,2]
[392391766,1761423673564,-208.53306152,0.00016038,2]
[392391767,1761423678259,-160.86822108,0.00016038,2]
[392391768,1761423722514,300.0,0.00016037,2]
[392391939,1761423764483,207.505941,0.00019,6]
[392391951,1761423777385,196.0,0.00016,2]
[392391952,1761423782408,300.0,0.00016037,2]
[392391954,1761423809689,153.134479,0.00019,6]
[392391955,1761423842256,300.0,0.00016037,2]
[392391956,1761423860855,477.95072502,0.00015941,2]
[392391957,1761423869908,1109.17503472,0.00015941,2]
[392391958,1761423869933,747.05739786,0.00015941,2]
[392391959,1761423901090,196.0,0.00016,2]
[392391960,1761423902839,300.0,0.00016037,2]
[392391961,1761423902866,1200.0,0.00016037,2]
[392391965,1761423911013,213.96859442,0.00016038,2]
[392391987,1761423962219,300.0,0.00016037,2]
[392392004,1761424017186,196.0,0.00016,2]
[392392005,1761424022199,300.0,0.00016037,2]
[392392093,1761424082479,300.0,0.00016037,2]
[392392149,1761424140047,196.0,0.00016,2]
[392392150,1761424142633,300.0,0.00016037,2]
[392392151,1761424168693,2034.80968811,0.00015999,2]
[392392152,1761424177997,500.0,0.00016037,2]
[392392153,1761424178248,500.0,0.00016037,2]
[392392154,1761424178486,500.0,0.00016037,2]
[392392155,1761424202129,1200.0,0.00016037,2]
[392392156,1761424202161,300.0,0.00016037,2]
[392392157,1761424210243,716.17431961,0.00015941,2]
[392392158,1761424210266,768.81162643,0.00015941,2]
[392392159,1761424212289,213.96859442,0.00016038,2]
[392392160,1761424232124,164.843851,0.00015276,2]
[392392190,1761424232565,-735.58929105,0.00016038,2]
[392392191,1761424232576,-66720.44273702,0.00016038,2]
[392392217,1761424241368,-3e-08,0.00016038,2]
[392392268,1761424246647,-2571.29047449,0.00016038,2]
[392392269,1761424246756,-3538.19455488,0.00016038,2]
[392392270,1761424256973,196.0,0.00016,2]
[392392272,1761424262285,300.0,0.00016037,2]
[392392273,1761424322240,300.0,0.00016037,2]
[392392295,1761424368399,171.933494,0.0001862,6]
[392392296,1761424375281,171.933494,0.00019031,7]
[392392297,1761424377119,171.933494,0.00018991,7]
[392392298,1761424377438,171.933494,0.00018951,7]
[392392299,1761424377852,171.933494,0.0001891,7]
[392392300,1761424378142,171.933494,0.0001887,7]
[392392301,1761424379567,196.0,0.00016,2]
[392392302,1761424380854,171.933494,0.00018894,10]
[392392303,1761424381145,171.933494,0.00018492,10]
[392392304,1761424382278,171.933494,0.0001809,10]
[392392305,1761424382558,300.0,0.00016037,2]
[392392306,1761424385732,171.933494,0.00019796,20]
[392392307,1761424386032,171.933494,0.00019365,20]
[392392308,1761424391169,418.20688441,0.0001594,2]
[392392309,1761424442265,300.0,0.00016037,2]
[392392310,1761424466919,366.95012816,0.00016037,2]
[392392311,1761424466965,210.59894218,0.00016037,2]
[392392312,1761424467000,457.17960689,0.00016037,2]
[392392313,1761424467030,194.19225192,0.00016037,2]
[392392314,1761424467060,500.0,0.00016037,2]
[392392315,1761424467095,500.0,0.00016037,2]
[392392316,1761424467125,500.0,0.00016037,2]
[392392317,1761424467156,500.0,0.00016037,2]
[392392318,1761424467188,500.0,0.00016037,2]
[392392319,1761424467218,434.84387847,0.00016037,2]
[392392320,1761424467245,500.0,0.00016037,2]
[392392321,1761424467282,500.0,0.00016037,2]
[392392322,1761424484721,233.99882465,0.00016037,2]
[392392323,1761424484755,444.92858579,0.00016037,2]
[392392324,1761424484782,225.82312638,0.00016037,2]
[392392325,1761424484810,500.0,0.00016037,2]
[392392326,1761424485051,233.99882465,0.00016037,2]
[392392327,1761424487250,39.66487465,0.00015343,2]
[392392328,1761424487273,135.86055934,0.00015343,2]
[392392329,1761424496386,196.0,0.00016,2]
[392392330,1761424501559,300.0,0.00016037,2]
[392392331,1761424501986,300.0,0.00016037,2]
[392392332,1761424502073,300.0,0.00016037,2]
[392392333,1761424502430,300.0,0.00016037,2]
[392392334,1761424503366,1200.0,0.00016037,2]
[392392335,1761424504743,300.0,0.00016037,2]
[392392336,1761424512257,213.96859442,0.00016038,2]
[392392337,1761424518714,-9391.04942264,0.00016038,2]
[392392338,1761424518857,-10000.01,0.00016038,2]
[392392339,1761424552331,1736.67587145,0.00015941,2]
[392392341,1761424562181,300.0,0.00016037,2]
[392392343,1761424619857,196.0,0.00016,2]
[392392344,1761424622220,300.0,0.00016037,2]
[392392348,1761424637464,401.88146985,0.00015205,2]
[392392349,1761424639439,459.2931084,0.00015271,2]
[392392350,1761424641073,716.9278364,0.00015338,2]
[392392353,1761424653603,500.0,0.00016037,2]
[392392354,1761424653660,500.0,0.00016037,2]
[392392355,1761424659236,1200.0,0.00016037,2]
[392392356,1761424671432,530.0,0.00016037,2]
[392392357,1761424671978,260.5370628,0.00016037,2]
[392392358,1761424672006,530.85279322,0.00016037,2]
[392392359,1761424672041,500.0,0.00016037,2]
[392392360,1761424682971,300.0,0.00016037,2]
[392392361,1761424683998,500.0,0.00016037,2]
[392392362,1761424684178,416.13420126,0.00016037,2]
[392392363,1761424684293,372.16481839,0.00016037,2]
[392392370,1761424690530,279.54283823,0.00016037,2]
[392392371,1761424690554,120.05803078,0.00016037,2]
[392392372,1761424690581,500.0,0.00016037,2]
[392392373,1761424702846,500.0,0.00016037,2]
[392392374,1761424702901,500.0,0.00016037,2]
[392392375,1761424703013,575.0,0.00016037,2]
[392392376,1761424706467,500.0,0.00016037,2]
[392392377,1761424715217,500.0,0.00016037,2]
[392392378,1761424715460,227.2505305,0.00016037,2]
[392392379,1761424723869,-204.83,0.00016038,2]
[392392380,1761424728349,-251.28745975,0.00016038,2]
[392392381,1761424729935,-155.14049997,0.00016038,2]
[392392382,1761424739662,196.0,0.00016,2]
[392392383,1761424742311,300.0,0.00016037,2]
[392392385,1761424803918,1200.0,0.00016037,2]
[392392386,1761424806766,2034.80968811,0.00015952,2]
[392392387,1761424811834,213.96859442,0.00016038,2]
[392392388,1761424815017,500.0,0.00016037,2]
[392392389,1761424815073,500.0,0.00016037,2]
[392392390,1761424815124,500.0,0.00016037,2]
[392392391,1761424818093,500.0,0.00016037,2]
[392392392,1761424818592,374.14108577,0.00016037,2]
[392392393,1761424828591,-258.78207042,0.00016038,2]
[392392394,1761424828733,-10000.01,0.00016038,2]
[392392395,1761424828747,-10000.01,0.00016038,2]
[392392396,1761424828825,-10000.01,0.00016038,2]
[392392397,1761424828964,-10000.01,0.00016038,2]
[392392398,1761424829124,-10000.01,0.00016038,2]
[392392399,1761424834421,-10000.01,0.00016038,2]
[392392400,1761424834581,-10000.01,0.00016038,2]
[392392401,1761424843507,-500.0,0.00016037,2]
[392392402,1761424843538,-500.0,0.00016037,2]
[392392403,1761424843569,-500.0,0.00016037,2]
[392392404,1761424843600,-193.06143501,0.00016037,2]
[392392405,1761424844566,5958.66546356,0.00015878,2]
[392392406,1761424845765,500.0,0.00016037,2]
[392392407,1761424845820,155.22166642,0.00016037,2]
[392392408,1761424845842,344.77833358,0.00016037,2]
[392392409,1761424845877,406.52140033,0.00016037,2]
[392392410,1761424849928,500.0,0.00016037,2]
[392392411,1761424852440,5000.0,0.00016038,2]
[392392412,1761424855857,500.0,0.00016037,2]
[392392413,1761424855890,500.0,0.00016037,2]
[392392414,1761424855935,500.0,0.00016037,2]
[392392415,1761424855972,597.14344038,0.00016037,2]
[392392416,1761424857225,479.20017288,0.00016037,2]
[392392417,1761424860313,196.0,0.00016,2]
[392392419,1761424862524,300.0,0.00016037,2]
[392392420,1761424875098,676.36665283,0.00016038,2]
[392392421,1761424875119,4323.63334717,0.00016038,2]
[392392422,1761424881772,365.93102385,0.0001594,2]
[392392423,1761424892906,5310.44562898,0.00015938,2]
[392392424,1761424892932,10000.01,0.00015938,2]
[392392425,1761424892956,10000.01,0.00015938,2]
[392392426,1761424892980,10000.01,0.00015938,2]
[392392427,1761424893007,10000.01,0.00015938,2]
[392392428,1761424893031,10000.01,0.00015938,2]
[392392429,1761424893054,10000.01,0.00015938,2]
[392392430,1761424893076,10000.01,0.00015938,2]
[392392431,1761424893097,10000.01,0.00015938,2]
[392392432,1761424893120,10000.01,0.00015938,2]
[392392435,1761424911967,5000.0,0.00015938,2]
[392392436,1761424919011,-231.13177892,0.00015938,2]
[392392437,1761424922717,300.0,0.00015937,2]
[392392438,1761424922759,-196.0,0.00015938,2]
[392392439,1761424924924,-363.74664777,0.00015938,2]
[392392440,1761424927631,1533.16976175,0.00015938,2]
[392392441,1761424927658,-166.9955249,0.00015938,2]
[392392442,1761424929876,-477.95675788,0.00015938,2]
[392392443,1761424930588,369.37259647,0.00015425,2]
[392392444,1761424932628,664.87067364,0.00015425,2]
[392392445,1761424934684,1181.99230869,0.00015425,2]
[392392446,1761424935447,950.60465945,0.00015938,2]
[392392447,1761424935469,4049.39534055,0.00015938,2]
[392392448,1761424936409,1846.86298233,0.00015425,2]
[392392449,1761424936707,-167.93959279,0.00015938,2]
[392392450,1761424938556,300.0,0.000159,2]
[392392451,1761424938595,2656.82321186,0.00015425,2]
[392392452,1761424938862,-198.25850035,0.00015938,2]
[392392453,1761424940780,-187.98950339,0.00015938,2]
[392392454,1761424942404,-194.98700156,0.00015938,2]
[392392455,1761424944202,-332.06040721,0.00015938,2]
[392392456,1761424946086,-190.06629939,0.00015938,2]
[392392457,1761424948735,-186.41711022,0.00015938,2]
[392392459,1761424949600,300.0,0.000159,2]
[392392460,1761424950900,-151.04746989,0.00015938,2]
[392392461,1761424952337,500.0,0.00015937,2]
[392392462,1761424952370,346.92846526,0.00015937,2]
[392392463,1761424952392,38.33243783,0.00015937,2]
[392392464,1761424952430,-246.82714561,0.00015938,2]
[392392465,1761424952867,237.09865196,0.00015937,2]
[392392466,1761424953732,500.0,0.00015937,2]
[392392467,1761424953761,500.0,0.00015937,2]
[392392468,1761424953791,500.0,0.00015937,2]
[392392469,1761424953821,500.0,0.00015937,2]
[392392470,1761424953852,500.0,0.00015937,2]
[392392471,1761424953881,500.0,0.00015937,2]
[392392472,1761424953912,500.0,0.00015937,2]
[392392473,1761424953944,500.0,0.00015937,2]
[392392474,1761424953973,500.0,0.00015937,2]
[392392475,1761424954009,500.0,0.00015937,2]
[392392476,1761424954045,639.39072862,0.00015937,2]
[392392477,1761424954081,500.0,0.00015937,2]
[392392478,1761424954113,500.0,0.00015937,2]
[392392479,1761424954144,500.0,0.00015937,2]
[392392480,1761424954173,500.0,0.00015937,2]
[392392481,1761424954202,508.65656354,0.00015937,2]
[392392482,1761424954477,500.0,0.00015937,2]
[392392483,1761424954508,500.0,0.00015937,2]
[392392484,1761424954541,500.0,0.00015937,2]
[392392485,1761424954582,76.53161805,0.00015937,2]
[392392486,1761424954606,423.46838195,0.00015937,2]
[392392487,1761424954638,500.0,0.00015937,2]
[392392488,1761424954666,500.0,0.00015937,2]
[392392489,1761424954699,369.16423241,0.00015937,2]
[392392490,1761424954728,500.0,0.00015937,2]
[392392491,1761424954760,500.0,0.00015937,2]
[392392492,1761424954790,500.0,0.00015937,2]
[392392493,1761424954821,500.0,0.00015937,2]
[392392494,1761424954865,500.0,0.00015937,2]
[392392495,1761424954897,553.15481585,0.00015937,2]
[392392496,1761424954949,500.0,0.00015937,2]
[392392497,1761424954983,500.0,0.00015937,2]
[392392498,1761424955012,500.0,0.00015937,2]
[392392499,1761424955043,488.22372965,0.00015937,2]
[392392500,1761424955083,500.0,0.00015937,2]
[392392501,1761424955126,500.0,0.00015937,2]
[392392502,1761424955159,500.0,0.00015937,2]
[392392503,1761424955195,454.00357172,0.00015937,2]
[392392504,1761424955228,500.0,0.00015937,2]
[392392505,1761424955264,500.0,0.00015937,2]
[392392506,1761424955299,211.99526842,0.00015937,2]
[392392507,1761424955325,288.00473158,0.00015937,2]
[392392508,1761424955361,500.0,0.00015937,2]
[392392509,1761424955401,500.0,0.00015937,2]
[392392510,1761424955431,500.0,0.00015937,2]
[392392511,1761424955464,500.0,0.00015937,2]
[392392512,1761424955501,500.0,0.00015937,2]
[392392513,1761424955536,500.0,0.00015937,2]
[392392514,1761424955572,500.0,0.00015937,2]
[392392515,1761424955611,500.0,0.00015937,2]
[392392516,1761424955651,500.0,0.00015937,2]
[392392517,1761424955714,500.0,0.00015937,2]
[392392518,1761424955764,500.0,0.00015937,2]
[392392519,1761424955803,500.0,0.00015937,2]
[392392520,1761424955836,500.0,0.00015937,2]
[392392521,1761424955874,500.0,0.00015937,2]
[392392522,1761424955911,500.0,0.00015937,2]
[392392523,1761424955950,500.0,0.00015937,2]
[392392524,1761424955993,500.0,0.00015937,2]
[392392525,1761424956027,500.0,0.00015937,2]
[392392526,1761424956101,500.0,0.00015937,2]
[392392527,1761424956157,212.00526842,0.00015937,2]
[392392528,1761424956184,287.99473158,0.00015937,2]
[392392529,1761424956222,500.0,0.00015937,2]
[392392530,1761424956255,417.41039937,0.00015937,2]
[392392531,1761424956293,500.0,0.00015937,2]
[392392532,1761424956341,500.0,0.00015937,2]
[392392533,1761424956383,500.0,0.00015937,2]
[392392534,1761424956472,500.0,0.00015937,2]
[392392535,1761424956567,500.0,0.00015937,2]
[392392536,1761424956609,500.0,0.00015937,2]
[392392537,1761424956653,500.0,0.00015937,2]
[392392538,1761424956690,500.0,0.00015937,2]
[392392539,1761424956723,500.0,0.00015937,2]
[392392540,1761424956765,500.0,0.00015937,2]
[392392541,1761424956801,500.0,0.00015937,2]
[392392542,1761424956851,500.0,0.00015937,2]
[392392543,1761424956882,500.0,0.00015937,2]
[392392544,1761424956918,500.0,0.00015937,2]
[392392545,1761424956956,500.0,0.00015937,2]
[392392546,1761424956998,500.0,0.00015937,2]
[392392547,1761424957052,500.0,0.00015937,2]
[392392548,1761424957092,294.60486905,0.00015937,2]
[392392549,1761424957119,205.39513095,0.00015937,2]
[392392550,1761424957158,500.0,0.00015937,2]
[392392551,1761424957922,-202.61729083,0.00015938,2]
[392392552,1761424958815,1447.00275806,0.00015938,2]
[392392553,1761424959336,1200.0,0.00015936,2]
[392392554,1761424960004,300.0,0.000159,2]
[392392555,1761424960106,-155.36852801,0.00015938,2]
[392392556,1761424969366,500.0,0.00015937,2]
[392392557,1761424969403,500.0,0.00015937,2]
[392392558,1761424969435,500.0,0.00015937,2]
[392392559,1761424969466,500.0,0.00015937,2]
[392392560,1761424969517,500.0,0.00015937,2]
[392392561,1761424969550,500.0,0.00015937,2]
[392392562,1761424969583,500.0,0.00015937,2]
[392392563,1761424969616,500.0,0.00015937,2]
[392392564,1761424969648,500.0,0.00015937,2]
[392392565,1761424969680,500.0,0.00015937,2]
[392392566,1761424969716,500.0,0.00015937,2]
[392392567,1761424969750,500.0,0.00015937,2]
[392392568,1761424969807,347.61211099,0.00015937,2]
[392392569,1761424969836,152.38788901,0.00015937,2]
[392392570,1761424969874,500.0,0.00015937,2]
[392392571,1761424969910,500.0,0.00015937,2]
[392392572,1761424969947,500.0,0.00015937,2]
[392392573,1761424969985,500.0,0.00015937,2]
[392392574,1761424970023,500.0,0.00015937,2]
[392392575,1761424970069,500.0,0.00015937,2]
[392392576,1761424970110,500.0,0.00015937,2]
[392392577,1761424970160,500.0,0.00015937,2]
[392392578,1761424970196,500.0,0.00015937,2]
[392392579,1761424970250,500.0,0.00015937,2]
[392392580,1761424970294,-223.5139117,0.00015938,2]
[392392581,1761424970327,500.0,0.00015937,2]
[392392582,1761424970363,500.0,0.00015937,2]
[392392583,1761424970413,500.0,0.00015937,2]
[392392584,1761424970451,500.0,0.00015937,2]
[392392585,1761424970517,500.0,0.00015937,2]
[392392586,1761424970553,500.0,0.00015937,2]
[392392587,1761424970585,417.41039937,0.00015937,2]
[392392588,1761424970618,500.0,0.00015937,2]
[392392589,1761424970660,500.0,0.00015937,2]
[392392590,1761424970695,430.21171162,0.00015937,2]
[392392591,1761424970718,69.78828838,0.00015937,2]
[392392592,1761424970759,500.0,0.00015937,2]
[392392593,1761424970799,500.0,0.00015937,2]
[392392594,1761424970836,500.0,0.00015937,2]
[392392595,1761424970873,500.0,0.00015937,2]
[392392596,1761424970915,500.0,0.00015937,2]
[392392597,1761424970947,300.0,0.000159,2]
[392392598,1761424970987,500.0,0.00015937,2]
[392392599,1761424971026,500.0,0.00015937,2]
[392392600,1761424971061,500.0,0.00015937,2]
[392392601,1761424971100,500.0,0.00015937,2]
[392392602,1761424971152,500.0,0.00015937,2]
[392392603,1761424971186,500.0,0.00015937,2]
[392392604,1761424971221,500.0,0.00015937,2]
[392392605,1761424971259,500.0,0.00015937,2]
[392392606,1761424971306,500.0,0.00015937,2]
[392392607,1761424972392,-151.60387663,0.00015938,2]
[392392608,1761424974353,2630.22171162,0.00015938,2]
[392392609,1761424974384,693.3516196,0.00015938,2]
[392392610,1761424976368,-194.14531406,0.00015938,2]
[392392611,1761424977211,441.58718578,0.00015937,2]